fUSD/lending_fUSD_20240614
["ID","MTS","AMOUNT","RATE_DAILY","PERIOD"]
[329461073,1718379047327,-500.0,0.00024109,3]
[329461074,1718379047337,-1346.62,0.00024109,3]
[329461075,1718379047353,-500.0,0.00024109,3]
[329461078,1718379047373,-500.0,0.00024109,3]
[329461079,1718379047395,-500.0,0.00024109,3]
[329461082,1718379047420,-500.0,0.00024109,3]
[329461085,1718379047445,-500.0,0.00024109,3]
[329461088,1718379047458,-500.0,0.00024109,3]
[329461091,1718379047480,-500.0,0.00024109,3]
[329461094,1718379047493,-152.89610457,0.00024109,3]
[329461097,1718379047506,-500.0,0.00024109,3]
[329461100,1718379047518,-500.0,0.00024109,3]
[329461102,1718379047581,-544.90599897,0.00024109,3]
[329461104,1718379047594,-500.0,0.00024109,3]
[329461106,1718379047607,-155.0,0.00024109,3]
[329461108,1718379047651,-500.0,0.00024109,3]
[329461109,1718379047674,-500.0,0.00024109,3]
[329461111,1718379047690,-500.0,0.00024109,3]
[329461113,1718379047700,-500.0,0.00024109,3]
[329461115,1718379047712,-386.34814575,0.00024109,3]
[329461116,1718379047728,-500.0,0.00024109,3]
[329461118,1718379047749,-228.03200585,0.00024109,3]
[329461120,1718379047776,-500.0,0.00024109,3]
[329461121,1718379047787,-500.0,0.00024109,3]
[329461124,1718379047803,-500.0,0.00024109,3]
[329461126,1718379047823,-537.83514061,0.00024109,3]
[329461128,1718379047836,-500.0,0.00024109,3]
[329461131,1718379047864,-500.0,0.00024109,3]
[329461132,1718379047877,-500.0,0.00024109,3]
[329461134,1718379047900,-500.0,0.00024109,3]
[329461136,1718379047913,-500.0,0.00024109,3]
[329461138,1718379047936,-428.98523676,0.00024109,3]
[329461140,1718379047952,-500.0,0.00024109,3]
[329461142,1718379047964,-500.0,0.00024109,3]
[329461144,1718379047993,-510.89755104,0.00024109,3]
[329461146,1718379048011,-500.0,0.00024109,3]
[329461148,1718379048026,-500.0,0.00024109,3]
[329461151,1718379048056,-536.57062977,0.00024109,3]
[329461152,1718379048073,-500.0,0.00024109,3]
[329461153,1718379048099,-500.0,0.00024109,3]
[329461155,1718379048120,-500.0,0.00024109,3]
[329461157,1718379048157,-500.0,0.00024109,3]
[329461159,1718379048175,-500.0,0.00024109,3]
[329461161,1718379048200,-500.0,0.00024109,3]
[329461162,1718379048211,-500.0,0.00024109,3]
[329461164,1718379048222,-527.91730683,0.00024109,3]
[329461166,1718379048235,-500.0,0.00024109,3]
[329461168,1718379048257,-548.36132171,0.00024109,3]
[329461171,1718379048267,-514.79690578,0.00024109,3]
[329461173,1718379048290,-500.0,0.00024109,3]
[329461175,1718379048303,-500.0,0.00024109,3]
[329461177,1718379048322,-418.06193828,0.00024109,3]
[329461179,1718379048352,-500.0,0.00024109,3]
[329461184,1718379048384,-500.0,0.00024109,3]
[329461188,1718379048414,-500.0,0.00024109,3]
[329461191,1718379048430,-500.0,0.00024109,3]
[329461198,1718379048472,-696.78,0.00024109,3]
[329461201,1718379048492,-500.0,0.00024109,3]
[329461203,1718379048511,-500.0,0.00024109,3]
[329461207,1718379048525,-500.0,0.00024109,3]
[329461212,1718379048540,-342.91659292,0.00024109,3]
[329461215,1718379048555,-500.0,0.00024109,3]
[329461218,1718379048574,-500.0,0.00024109,3]
[329461222,1718379048594,-500.0,0.00024109,3]
[329461225,1718379048604,-500.0,0.00024109,3]
[329461228,1718379048616,-500.0,0.00024109,3]
[329461230,1718379048636,-1000.0,0.00024109,3]
[329461234,1718379048668,-500.0,0.00024109,3]
[329461237,1718379048682,-500.0,0.00024109,3]
[329461241,1718379048704,-500.0,0.00024109,3]
[329461244,1718379048723,-500.0,0.00024109,3]
[329461247,1718379048742,-500.0,0.00024109,3]
[329461251,1718379048757,-500.0,0.00024109,3]
[329461255,1718379048778,-500.0,0.00024109,3]
[329461257,1718379048796,-500.0,0.00024109,3]
[329461260,1718379048810,-500.0,0.00024109,3]
[329461263,1718379048831,-500.0,0.00024109,3]
[329461265,1718379048842,-528.06275856,0.00024109,3]
[329461267,1718379048857,-500.0,0.00024109,3]
[329461270,1718379048879,-500.0,0.00024109,3]
[329461273,1718379048913,-626.76840935,0.00024109,3]
[329461275,1718379048953,-500.0,0.00024109,3]
[329461277,1718379048965,-500.0,0.00024109,3]
[329461279,1718379048994,-500.0,0.00024109,3]
[329461281,1718379049023,-500.0,0.00024109,3]
[329461283,1718379049041,-500.0,0.00024109,3]
[329461286,1718379049071,-500.0,0.00024109,3]
[329461287,1718379049095,-628.99752707,0.00024109,3]
[329461289,1718379049107,-500.0,0.00024109,3]
[329461291,1718379049121,-500.0,0.00024109,3]
[329461293,1718379049133,-500.0,0.00024109,3]
[329461295,1718379049168,-500.0,0.00024109,3]
[329461297,1718379049183,-500.0,0.00024109,3]
[329461300,1718379049217,-500.0,0.00024109,2]
[329461302,1718379049230,-500.0,0.00024109,3]
[329461304,1718379049264,-500.0,0.00024109,3]
[329461306,1718379049280,-163.97609242,0.00024109,3]
[329461307,1718379049317,-500.0,0.00024109,3]
[329461309,1718379049339,-500.0,0.00024109,3]
[329461311,1718379049358,-500.0,0.00024109,3]
[329461312,1718379049377,-500.0,0.00024109,3]
[329461313,1718379049388,-500.0,0.00024109,3]
[329461314,1718379049405,-500.0,0.00024109,3]
[329461315,1718379049444,-500.0,0.00024109,3]
[329461316,1718379049484,-500.0,0.00024109,3]
[329461317,1718379049495,-500.0,0.00024109,3]
[329461318,1718379049512,-500.0,0.00024109,3]
[329461319,1718379049530,-500.0,0.00024109,3]
[329461321,1718379049549,-500.0,0.00024109,3]
[329461323,1718379049580,-500.0,0.00024109,3]
[329461325,1718379049594,-500.0,0.00024109,3]
[329461328,1718379049615,-325.91553827,0.00024109,3]
[329461330,1718379049628,-500.0,0.00024109,3]
[329461332,1718379049648,-500.0,0.00024109,3]
[329461334,1718379049666,-802.44,0.00024109,3]
[329461336,1718379049679,-500.0,0.00024109,3]
[329461338,1718379049698,-538.52502288,0.00024109,3]
[329461341,1718379049728,-649.73,0.00024109,3]
[329461342,1718379049745,-500.0,0.00024109,3]
[329461344,1718379049760,-500.0,0.00024109,3]
[329461346,1718379049776,-503.06350783,0.00024109,3]
[329461348,1718379049790,-500.0,0.00024109,3]
[329461350,1718379049817,-500.0,0.00024109,3]
[329461352,1718379049830,-635.03,0.00024109,3]
[329461354,1718379049854,-500.0,0.00024109,3]
[329461356,1718379049885,-500.0,0.00024109,3]
[329461358,1718379049896,-500.0,0.00024109,3]
[329461359,1718379049906,-500.0,0.00024109,3]
[329461361,1718379049931,-359.57972022,0.00024109,3]
[329461363,1718379049944,-500.0,0.00024109,3]
[329461365,1718379049958,-500.0,0.00024109,3]
[329461366,1718379049968,-720.18,0.00024109,3]
[329461367,1718379049984,-691.47,0.00024109,3]
[329461368,1718379050002,-500.0,0.00024109,3]
[329461369,1718379050015,-500.0,0.00024109,3]
[329461370,1718379050026,-500.0,0.00024109,3]
[329461371,1718379050038,-505.99,0.00024109,3]
[329461372,1718379050066,-410.0422177,0.00024109,3]
[329461373,1718379050087,-736.64,0.00024109,3]
[329461374,1718379050101,-500.0,0.00024109,3]
[329461375,1718379050119,-500.0,0.00024109,3]
[329461376,1718379050139,-500.0,0.00024109,3]
[329461377,1718379050153,-500.0,0.00024109,3]
[329461378,1718379050166,-500.0,0.00024109,3]
[329461379,1718379050182,-504.73418622,0.00024109,3]
[329461380,1718379050208,-500.0,0.00024109,3]
[329461381,1718379050224,-500.0,0.00024109,3]
[329461382,1718379050244,-500.0,0.00024109,3]
[329461383,1718379050255,-509.7674813,0.00024109,3]
[329461384,1718379050278,-200.58816492,0.00024109,3]
[329461385,1718379050295,-764.47,0.00024109,3]
[329461386,1718379050305,-500.0,0.00024109,3]
[329461387,1718379050324,-500.0,0.00024109,3]
[329461388,1718379050336,-500.0,0.00024109,3]
[329461389,1718379050373,-500.0,0.00024109,3]
[329461395,1718379050542,-500.0,0.00024109,3]
[329461396,1718379050593,-500.0,0.00024109,3]
[329461397,1718379050606,-1064.27,0.00024109,3]
[329461398,1718379050618,-527.84,0.00024109,3]
[329461399,1718379050632,-500.0,0.00024109,3]
[329461400,1718379050644,-500.0,0.00024109,3]
[329461401,1718379050658,-500.0,0.00024109,3]
[329461402,1718379050674,-531.90454287,0.00024109,3]
[329461403,1718379050686,-500.0,0.00024109,3]
[329461405,1718379050697,-588.25,0.00024109,3]
[329461407,1718379050709,-500.0,0.00024109,3]
[329461409,1718379050722,-500.0,0.00024109,3]
[329461411,1718379050733,-500.0,0.00024109,3]
[329461412,1718379050747,-500.0,0.00024109,3]
[329461414,1718379050760,-500.0,0.00024109,3]
[329461416,1718379050770,-509.44791136,0.00024109,3]
[329461418,1718379050781,-500.0,0.00024109,3]
[329461421,1718379050809,-500.0,0.00024109,3]
[329461422,1718379050830,-500.0,0.00024109,3]
[329461424,1718379050842,-1057.3,0.00024109,3]
[329461427,1718379050866,-500.0,0.00024109,3]
[329461429,1718379050897,-500.0,0.00024109,3]
[329461431,1718379050919,-994.56,0.00024109,3]
[329461433,1718379050941,-620.32,0.00024109,3]
[329461435,1718379050965,-531.35,0.00024109,3]
[329461439,1718379050997,-500.0,0.00024109,3]
[329461441,1718379051043,-509.51974784,0.00024109,3]
[329461443,1718379051100,-500.0,0.00024109,3]
[329461445,1718379051117,-1180.83,0.00024109,3]
[329461448,1718379051148,-500.0,0.00024109,3]
[329461450,1718379051165,-500.0,0.00024109,2]
[329461452,1718379051177,-503.12194505,0.00024109,3]
[329461453,1718379051213,-500.0,0.00024109,3]
[329461455,1718379051225,-500.0,0.00024109,3]
[329461456,1718379051237,-283.81113296,0.00024109,3]
[329461459,1718379051261,-1285.88,0.00024109,3]
[329461461,1718379051275,-500.0,0.00024109,3]
[329461463,1718379051288,-500.0,0.00024109,3]
[329461465,1718379051300,-500.0,0.00024109,3]
[329461467,1718379051319,-500.0,0.00024109,3]
[329461469,1718379051348,-500.0,0.00024109,3]
[329461471,1718379051358,-500.0,0.00024109,3]
[329461473,1718379051374,-2000.0,0.00024109,3]
[329461475,1718379051386,-511.92813678,0.00024109,3]
[329461476,1718379051398,-500.0,0.00024109,3]
[329461478,1718379051412,-500.0,0.00024109,3]
[329461480,1718379051422,-500.0,0.00024109,3]
[329461482,1718379051437,-500.0,0.00024109,3]
[329461485,1718379051456,-500.0,0.00024109,3]
[329461488,1718379051478,-500.0,0.00024109,3]
[329461490,1718379051496,-581.61,0.00024109,3]
[329461491,1718379051528,-500.0,0.00024109,3]
[329461493,1718379051544,-500.0,0.00024109,3]
[329461495,1718379051558,-500.0,0.00024109,3]
[329461497,1718379051574,-814.37,0.00024109,3]
[329461498,1718379051584,-500.0,0.00024109,3]
[329461500,1718379051595,-500.0,0.00024109,3]
[329461506,1718379051657,-500.0,0.00024109,3]
[329461509,1718379051683,-500.0,0.00024109,3]
[329461511,1718379051708,-500.0,0.00024109,3]
[329461514,1718379051720,-507.56113763,0.00024109,3]
[329461517,1718379051753,-500.0,0.00024109,3]
[329461519,1718379051768,-511.56634957,0.00024109,3]
[329461521,1718379051781,-500.0,0.00024109,3]
[329461524,1718379051802,-500.0,0.00024109,3]
[329461525,1718379051830,-500.0,0.00024109,3]
[329461527,1718379051863,-629.22,0.00024109,3]
[329461529,1718379051887,-500.0,0.00024109,3]
[329461531,1718379051925,-500.0,0.00024109,3]
[329461534,1718379051967,-500.0,0.00024109,3]
[329461536,1718379052000,-500.0,0.00024109,3]
[329461538,1718379052012,-670.17,0.00024109,3]
[329461539,1718379052024,-505.1579246,0.00024109,3]
[329461541,1718379052049,-500.0,0.00024109,3]
[329461543,1718379052059,-500.0,0.00024109,3]
[329461545,1718379052074,-500.0,0.00024109,3]
[329461547,1718379052086,-500.0,0.00024109,3]
[329461549,1718379052109,-934.98,0.00024109,3]
[329461551,1718379052120,-500.0,0.00024109,3]
[329461553,1718379052144,-500.0,0.00024109,3]
[329461555,1718379052159,-500.0,0.00024109,3]
[329461556,1718379052186,-500.0,0.00024109,3]
[329461559,1718379052199,-500.0,0.00024109,3]
[329461561,1718379052218,-500.0,0.00024109,3]
[329461563,1718379052241,-505.99955336,0.00024109,3]
[329461565,1718379052266,-500.0,0.00024109,3]
[329461567,1718379052283,-500.0,0.00024109,3]
[329461568,1718379052296,-500.0,0.00024109,3]
[329461570,1718379052348,-500.0,0.00024109,3]
[329461572,1718379052363,-500.0,0.00024109,3]
[329461574,1718379052375,-151.0,0.00024109,7]
[329461576,1718379052388,-577.57,0.00024109,3]
[329461579,1718379052413,-500.0,0.00024109,3]
[329461581,1718379052431,-500.0,0.00024109,3]
[329461583,1718379052453,-500.0,0.00024109,3]
[329461585,1718379052479,-500.0,0.00024109,3]
[329461587,1718379052491,-500.0,0.00024109,3]
[329461589,1718379052506,-532.65,0.00024109,3]
[329461591,1718379052532,-514.81628219,0.00024109,3]
[329461593,1718379052544,-500.0,0.00024109,3]
[329461595,1718379052555,-500.0,0.00024109,3]
[329461598,1718379052590,-500.0,0.00024109,3]
[329461600,1718379052605,-500.0,0.00024109,3]
[329461601,1718379052617,-518.57062582,0.00024109,3]
[329461604,1718379052658,-500.0,0.00024109,3]
[329461605,1718379052677,-533.87270159,0.00024109,3]
[329461607,1718379052720,-500.0,0.00024109,3]
[329461609,1718379052732,-615.49,0.00024109,3]
[329461611,1718379052745,-500.0,0.00024109,3]
[329461614,1718379052789,-588.9,0.00024109,3]
[329461615,1718379052809,-500.0,0.00024109,3]
[329461618,1718379052851,-500.0,0.00024109,3]
[329461620,1718379052886,-500.0,0.00024109,3]
[329461623,1718379052898,-500.0,0.00024109,3]
[329461626,1718379052937,-500.0,0.00024109,3]
[329461628,1718379052971,-500.0,0.00024109,3]
[329461630,1718379052987,-500.0,0.00024109,3]
[329461632,1718379053052,-500.0,0.00024109,3]
[329461634,1718379053070,-1556.19,0.00024109,3]
[329461636,1718379053088,-286.96026367,0.00024109,3]
[329461638,1718379053100,-500.0,0.00024109,3]
[329461640,1718379053128,-500.0,0.00024109,3]
[329461642,1718379053139,-673.94,0.00024109,3]
[329461644,1718379053194,-500.0,0.00024109,3]
[329461645,1718379053211,-500.0,0.00024109,3]
[329461647,1718379053252,-517.43,0.00024109,3]
[329461649,1718379053266,-500.0,0.00024109,3]
[329461650,1718379053278,-500.0,0.00024109,3]
[329461653,1718379053303,-500.0,0.00024109,3]
[329461654,1718379053314,-500.0,0.00024109,3]
[329461656,1718379053329,-500.0,0.00024109,3]
[329461658,1718379053343,-500.0,0.00024109,3]
[329461660,1718379053379,-525.028199,0.00024109,3]
[329461663,1718379053392,-593.84,0.00024109,3]
[329461666,1718379053427,-833.86,0.00024109,3]
[329461668,1718379053450,-500.0,0.00024109,3]
[329461671,1718379053468,-500.0,0.00024109,3]
[329461673,1718379053491,-500.0,0.00024109,3]
[329461675,1718379053506,-804.61,0.00024109,3]
[329461678,1718379053521,-522.79315522,0.00024109,3]
[329461680,1718379053534,-500.0,0.00024109,3]
[329461681,1718379053546,-500.0,0.00024109,3]
[329461683,1718379053559,-500.0,0.00024109,3]
[329461684,1718379053576,-500.0,0.00024109,3]
[329461685,1718379053588,-500.0,0.00024109,3]
[329461686,1718379053609,-1031.22,0.00024109,3]
[329461687,1718379053625,-500.0,0.00024109,3]
[329461688,1718379053635,-671.46,0.00024109,3]
[329461689,1718379053647,-587.41,0.00024109,3]
[329461690,1718379053661,-500.0,0.00024109,3]
[329461691,1718379053679,-500.0,0.00024109,3]
[329461692,1718379053709,-500.0,0.00024109,3]
[329461693,1718379053736,-186.23596096,0.00024109,3]
[329461694,1718379053752,-500.0,0.00024109,3]
[329461695,1718379053778,-1072.91,0.00024109,3]
[329461696,1718379053792,-500.0,0.00024109,3]
[329461697,1718379053811,-578.42,0.00024109,3]
[329461698,1718379053826,-514.99894095,0.00024109,3]
[329461699,1718379053842,-500.0,0.00024109,3]
[329461700,1718379053864,-524.06363555,0.00024109,3]
[329461701,1718379053883,-500.0,0.00024109,3]
[329461702,1718379053921,-511.86,0.00024109,3]
[329461703,1718379053934,-500.0,0.00024109,3]
[329461704,1718379053954,-606.42,0.00024109,3]
[329461705,1718379053976,-500.0,0.00024109,3]
[329461706,1718379053991,-500.0,0.00024109,3]
[329461707,1718379054019,-500.0,0.00024109,3]
[329461708,1718379054039,-735.32,0.00024109,3]
[329461709,1718379054054,-845.52,0.00024109,3]
[329461710,1718379054068,-500.0,0.00024109,3]
[329461711,1718379054097,-793.75,0.00024109,3]
[329461712,1718379054116,-500.0,0.00024109,3]
[329461713,1718379054137,-500.0,0.00024109,3]
[329461714,1718379054155,-500.0,0.00024109,3]
[329461715,1718379054182,-500.0,0.00024109,3]
[329461716,1718379054196,-869.78,0.00024109,3]
[329461717,1718379054207,-500.0,0.00024109,3]
[329461718,1718379054226,-550.01728926,0.00024109,3]
[329461719,1718379054246,-500.0,0.00024109,3]
[329461720,1718379054257,-124.40523095,0.00024109,3]
[329461721,1718379054714,-375.59476905,0.00024109,3]
[329461722,1718379054726,-500.0,0.00024109,3]
[329461723,1718379054740,-500.0,0.00024109,3]
[329461724,1718379054753,-500.0,0.00024109,3]
[329461725,1718379054765,-500.0,0.00024109,3]
[329461726,1718379054780,-500.0,0.00024109,3]
[329461727,1718379054792,-517.12608999,0.00024109,3]
[329461728,1718379054803,-500.0,0.00024109,3]
[329461729,1718379054825,-500.0,0.00024109,3]
[329461730,1718379054854,-500.0,0.00024109,3]
[329461731,1718379054874,-500.0,0.00024109,3]
[329461732,1718379054885,-500.0,0.00024109,3]
[329461733,1718379054913,-500.0,0.00024109,3]
[329461734,1718379054925,-500.0,0.00024109,3]
[329461735,1718379054943,-576.29,0.00024109,3]
[329461736,1718379054960,-507.96918193,0.00024109,3]
[329461737,1718379054985,-521.20088748,0.00024109,3]
[329461738,1718379055003,-500.0,0.00024109,3]
[329461739,1718379055017,-521.01,0.00024109,3]
[329461740,1718379055034,-508.68947154,0.00024109,3]
[329461741,1718379055078,-500.0,0.00024109,3]
[329461742,1718379055091,-500.0,0.00024109,3]
[329461743,1718379055113,-500.0,0.00024109,3]
[329461744,1718379055124,-930.39,0.00024109,3]
[329461745,1718379055142,-510.23314549,0.00024109,3]
[329461746,1718379055161,-936.16,0.00024109,3]
[329461747,1718379055174,-500.0,0.00024109,3]
[329461748,1718379055226,-500.0,0.00024109,3]
[329461749,1718379055237,-795.45,0.00024109,3]
[329461750,1718379055257,-500.0,0.00024109,3]
[329461751,1718379055291,-500.0,0.00024109,3]
[329461752,1718379055306,-500.0,0.00024109,3]
[329461753,1718379055337,-500.0,0.00024109,3]
[329461754,1718379055349,-500.0,0.00024109,3]
[329461755,1718379055362,-500.0,0.00024109,3]
[329461756,1718379055377,-500.0,0.00024109,3]
[329461757,1718379055401,-500.0,0.00024109,3]
[329461758,1718379055414,-338.71957993,0.00024109,3]
[329461759,1718379055431,-500.0,0.00024109,3]
[329461760,1718379055444,-500.0,0.00024109,3]
[329461761,1718379055459,-500.0,0.00024109,3]
[329461762,1718379055471,-500.0,0.00024109,3]
[329461763,1718379055485,-364.61555273,0.00024109,3]
[329461764,1718379055499,-505.4314811,0.00024109,3]
[329461765,1718379055513,-500.0,0.00024109,3]
[329461766,1718379055527,-500.0,0.00024109,3]
[329461767,1718379055542,-500.0,0.00024109,3]
[329461768,1718379055553,-151.0,0.00024109,7]
[329461769,1718379055584,-500.0,0.00024109,3]
[329461770,1718379055608,-500.0,0.00024109,3]
[329461771,1718379055623,-381.11421957,0.00024109,3]
[329461772,1718379055648,-134.50401551,0.00024109,3]
[329461773,1718379055664,-500.0,0.00024109,3]
[329461774,1718379055701,-505.12,0.00024109,3]
[329461775,1718379055720,-601.43873089,0.00024109,3]
[329461776,1718379055735,-500.0,0.00024109,3]
[329461777,1718379055750,-500.0,0.00024109,3]
[329461778,1718379055769,-918.47,0.00024109,3]
[329461779,1718379055799,-500.0,0.00024109,3]
[329461780,1718379055810,-496.41457507,0.00024109,3]
[329461781,1718379055829,-500.0,0.00024109,3]
[329461782,1718379055842,-519.27133668,0.00024109,3]
[329461783,1718379055855,-500.0,0.00024109,3]
[329461784,1718379055872,-500.0,0.00024109,3]
[329461785,1718379055889,-500.0,0.00024109,3]
[329461786,1718379055912,-500.0,0.00024109,3]
[329461787,1718379055946,-500.0,0.00024109,3]
[329461788,1718379055977,-500.0,0.00024109,3]
[329461789,1718379055988,-581.08,0.00024109,3]
[329461790,1718379056006,-507.12814063,0.00024109,3]
[329461791,1718379056030,-611.49,0.00024109,3]
[329461792,1718379056052,-408.68157349,0.00024109,3]
[329461793,1718379056064,-417.44537715,0.00024109,3]
[329461794,1718379056082,-500.0,0.00024109,3]
[329461795,1718379056096,-500.0,0.00024109,3]
[329461796,1718379056114,-500.0,0.00024109,3]
[329461797,1718379056130,-500.0,0.00024109,3]
[329461798,1718379056141,-980.95625058,0.00024109,3]
[329461799,1718379056163,-57.01374942,0.00024109,3]
[329461800,1718379056179,-222.13163142,0.00024109,3]
[329461801,1718379056192,-773.05,0.00024109,3]
[329461802,1718379056202,-510.6790972,0.00024109,3]
[329461803,1718379056217,-621.57021419,0.00024109,3]
[329461804,1718379056232,-6.98978581,0.00024109,3]
[329461805,1718379056244,-476.67173143,0.00024109,3]
[329461806,1718379056256,-23.32826857,0.00024109,3]
[329461807,1718379056266,-563.36672905,0.00024109,3]
[329461808,1718379056526,-500.0,0.00024109,3]
[329461809,1718379056539,-500.0,0.00024109,3]
[329461810,1718379056554,-57.59338408,0.00024109,3]
[329461811,1718379056805,-219.80661592,0.00024109,3]
[329461812,1718379056833,-532.18,0.00024109,3]
[329461813,1718379056844,-500.0,0.00024109,3]
[329461814,1718379056854,-512.22,0.00024109,3]
[329461815,1718379056865,-650.0,0.00024109,3]
[329461816,1718379056879,-500.0,0.00024109,3]
[329461817,1718379056890,-500.0,0.00024109,3]
[329461818,1718379056903,-500.0,0.00024109,3]
[329461819,1718379056917,-500.0,0.00024109,3]
[329461820,1718379056955,-297.98048576,0.00024109,3]
[329461821,1718379056978,-202.01951424,0.00024109,3]
[329461822,1718379057013,-519.06,0.00024109,3]
[329461823,1718379057046,-500.0,0.00024109,3]
[329461824,1718379057058,-292.27916612,0.00024109,3]
[329461825,1718379058578,-207.72083388,0.00024109,3]
[329461826,1718379058598,-500.0,0.00024109,3]
[329461827,1718379058611,-271.15160197,0.00024109,3]
[329461828,1718379058908,-884.040005,0.00024109,3]
[329461829,1718379058922,-128.13839303,0.00024109,3]
[329461830,1718379058934,-279.06181903,0.00024109,3]
[329461831,1718379058963,-220.93818097,0.00024109,3]
[329461832,1718379058978,-500.0,0.00024109,3]
[329461833,1718379059009,-500.0,0.00024109,3]
[329461834,1718379059056,-500.0,0.00024109,3]
[329461835,1718379059073,-500.0,0.00024109,3]
[329461836,1718379059086,-500.0,0.00024109,3]
[329461837,1718379059098,-500.0,0.00024109,3]
[329461838,1718379059115,-500.0,0.00024109,3]
[329461839,1718379059129,-671.42,0.00024109,3]
[329461840,1718379059168,-500.0,0.00024109,3]
[329461841,1718379059182,-500.0,0.00024109,3]
[329461842,1718379059212,-659.03,0.00024109,3]
[329461843,1718379059238,-518.69867972,0.00024109,3]
[329461844,1718379059250,-674.14,0.00024109,3]
[329461845,1718379059275,-500.0,0.00024109,3]
[329461846,1718379059289,-500.0,0.00024109,3]
[329461847,1718379059304,-500.0,0.00024109,3]
[329461848,1718379059336,-500.0,0.00024109,3]
[329461849,1718379059351,-1013.2,0.00024109,3]
[329461850,1718379059371,-500.0,0.00024109,3]
[329461851,1718379059408,-500.0,0.00024109,3]
[329461852,1718379059441,-501.21430039,0.00024109,3]
[329461853,1718379059483,-2028.88,0.00024109,3]
[329461854,1718379059528,-500.0,0.00024109,3]
[329461855,1718379059541,-504.12350281,0.00024109,3]
[329461856,1718379059551,-729.1,0.00024109,3]
[329461857,1718379059564,-500.0,0.00024109,3]
[329461858,1718379059580,-500.0,0.00024109,3]
[329461859,1718379059601,-500.0,0.00024109,3]
[329461860,1718379059612,-672.19,0.00024109,3]
[329461861,1718379059623,-500.0,0.00024109,3]
[329461862,1718379059634,-152.178944,0.00024109,7]
[329461863,1718379059670,-500.0,0.00024109,3]
[329461864,1718379059692,-500.0,0.00024109,3]
[329461865,1718379059721,-500.0,0.00024109,3]
[329461866,1718379059775,-500.0,0.00024109,3]
[329461867,1718379059786,-500.0,0.00024109,3]
[329461868,1718379059828,-515.04536558,0.00024109,3]
[329461869,1718379059859,-500.0,0.00024109,3]
[329461870,1718379059870,-174.39779004,0.00024109,3]
[329461871,1718379059886,-696.8,0.00024109,3]
[329461872,1718379059912,-500.0,0.00024109,3]
[329461873,1718379059927,-500.0,0.00024109,3]
[329461874,1718379059938,-500.0,0.00024109,3]
[329461875,1718379059974,-729.13,0.00024109,3]
[329461876,1718379059985,-526.86054694,0.00024109,3]
[329461877,1718379060032,-500.0,0.00024109,3]
[329461878,1718379060068,-898.44,0.00024109,3]
[329461879,1718379060097,-608.65,0.00024109,3]
[329461880,1718379060148,-500.0,0.00024109,3]
[329461881,1718379060190,-500.0,0.00024109,3]
[329461882,1718379060234,-1035.73,0.00024109,3]
[329461883,1718379060272,-331.6998731,0.00024109,3]
[329461884,1718379060289,-548.56,0.00024109,3]
[329461885,1718379060334,-500.0,0.00024109,3]